Workbook

Sheet 102 3346102 KL
A1: POLOŽKOVÝ ROZPOČET
A2: Rozpočet | C2: 3346/102 | D2: Oprava chodníku na Havlíčovu nám-levá strana | F2: JKSO | G2: 822.29
A4: Objekt | F4: SKP
A5: 102 | C5: Oprava chodníku na Havlíčovu nám-levá strana | F5: Měrná jednotka | G5: m2
A6: Stavba | F6: Počet jednotek | G6: 340
A7: 3346 | C7: Turnov - Opravy chodníků a zpevněných ploch | F7: Náklady na m.j. | G7: =IF(G6=0,,ROUND((F30+F32)/G6,1)) -> 0
A8: Projektant | F8: Typ rozpočtu
A9: Zpracovatel projektu
A10: Objednatel | C10: Město TURNOV
A11: Dodavatel | C11: . | F11: Zakázkové číslo
A12: Rozpočtoval | F12: Počet listů
A13: ROZPOČTOVÉ NÁKLADY
A14: Základní rozpočtové náklady | D14: Ostatní rozpočtové náklady
B15: HSV celkem | C15: ='102 3346102 Rek'!E11 -> 0 | D15: ='102 3346102 Rek'!A16 -> Zařízení staveniště | G15: ='102 3346102 Rek'!I16 -> 0
A16: Z | B16: PSV celkem | C16: ='102 3346102 Rek'!F11 -> 0 | D16: ='102 3346102 Rek'!A17 -> Provoz investora | G16: ='102 3346102 Rek'!I17 -> 0
A17: R | B17: M práce celkem | C17: ='102 3346102 Rek'!H11 -> 0 | D17: ='102 3346102 Rek'!A18 -> Kompletační činnost (IČD) | G17: ='102 3346102 Rek'!I18 -> 0
A18: N | B18: M dodávky celkem | C18: ='102 3346102 Rek'!G11 -> 0 | D18: ='102 3346102 Rek'!A19 -> Vytýčení stavby a podz. inženýrských sítí | G18: ='102 3346102 Rek'!I19 -> 0
A19: ZRN celkem | C19: =SUM(C15:C18) -> 0 | D19: ='102 3346102 Rek'!A20 -> Dokumentace skutečného provedení | G19: ='102 3346102 Rek'!I20 -> 0
D20: ='102 3346102 Rek'!A21 -> DIO | G20: ='102 3346102 Rek'!I21 -> 0
A21: HZS | C21: ='102 3346102 Rek'!I11 -> 0
A22: ZRN+HZS | C22: =C19+C21 -> 0
A23: ZRN+ost.náklady+HZS | C23: =C22+G23 -> 0 | D23: Ostatní náklady celkem | G23: ='102 3346102 Rek'!H22 -> 0
A24: Vypracoval | D24: Za zhotovitele | F24: Za objednatele
A25: Jméno : | D25: Jméno : | F25: Jméno :
A26: Datum : | D26: Datum : | F26: Datum :
A28: Podpis : | D28: Podpis: | F28: Podpis:
A30: Základ pro DPH | C30: 21 | D30: % | F30: =C23-F32 -> 0
A31: DPH | C31: =C30 -> 21 | D31: % | F31: =ROUND(PRODUCT(F30,C31/100),0) -> 0
A32: Základ pro DPH | C32: 0 | D32: % | F32: 0
A33: DPH | C33: =C32 -> 0 | D33: % | F33: =ROUND(PRODUCT(F32,C33/100),0) -> 0
A34: CENA ZA OBJEKT CELKEM | F34: =ROUND(SUM(F30:F33),0) -> 0
A36: Poznámka :

Sheet 102 3346102 Rek
A1: Stavba : | C1: 3346 Turnov - Opravy chodníků a zpevněných ploch | G1: Rozpočet : | H1: 3346/102
A2: Objekt : | C2: 102 Oprava chodníku na Havlíčovu nám-levá strana | G2: Oprava chodníku na Havlíčovu nám-levá strana
A4: REKAPITULACE STAVEBNÍCH DÍLŮ
B6: Stavební díl | E6: HSV | F6: PSV | G6: Dodávka | H6: Montáž | I6: HZS
A7: ='102 3346102 Pol'!B7 -> 1 | B7: ='102 3346102 Pol'!C7 -> Zemní práce | E7: ='102 3346102 Pol'!BA61 -> 0 | F7: ='102 3346102 Pol'!BB61 -> 0 | G7: ='102 3346102 Pol'!BC61 -> 0 | H7: ='102 3346102 Pol'!BD61 -> 0 | I7: ='102 3346102 Pol'!BE61 -> 0
A8: ='102 3346102 Pol'!B62 -> 5 | B8: ='102 3346102 Pol'!C62 -> Komunikace | E8: ='102 3346102 Pol'!BA89 -> 0 | F8: ='102 3346102 Pol'!BB89 -> 0 | G8: ='102 3346102 Pol'!BC89 -> 0 | H8: ='102 3346102 Pol'!BD89 -> 0 | I8: ='102 3346102 Pol'!BE89 -> 0
A9: ='102 3346102 Pol'!B90 -> 91 | B9: ='102 3346102 Pol'!C90 -> Doplňující práce na komunikaci | E9: ='102 3346102 Pol'!BA95 -> 0 | F9: ='102 3346102 Pol'!BB95 -> 0 | G9: ='102 3346102 Pol'!BC95 -> 0 | H9: ='102 3346102 Pol'!BD95 -> 0 | I9: ='102 3346102 Pol'!BE95 -> 0
A10: ='102 3346102 Pol'!B96 -> 99 | B10: ='102 3346102 Pol'!C96 -> Staveništní přesun hmot | E10: ='102 3346102 Pol'!BA98 -> 0 | F10: ='102 3346102 Pol'!BB98 -> 0 | G10: ='102 3346102 Pol'!BC98 -> 0 | H10: ='102 3346102 Pol'!BD98 -> 0 | I10: ='102 3346102 Pol'!BE98 -> 0
B11: CELKEM OBJEKT | E11: =SUM(E7:E10) -> 0 | F11: =SUM(F7:F10) -> 0 | G11: =SUM(G7:G10) -> 0 | H11: =SUM(H7:H10) -> 0 | I11: =SUM(I7:I10) -> 0
A13: VEDLEJŠÍ ROZPOČTOVÉ NÁKLADY
A15: Název VRN | E15: Kč | I15: Kč
A16: Zařízení staveniště | E16: 0 | I16: =E16+F16*G16/100 -> 0 | BA16: 2
A17: Provoz investora | E17: 0 | I17: 0 | BA17: 1
A18: Kompletační činnost (IČD) | E18: 0 | I18: 0 | BA18: 2
A19: Vytýčení stavby a podz. inženýrských sítí | E19: 0 | I19: 0 | BA19: 0
A20: Dokumentace skutečného provedení | E20: 0 | I20: 0 | BA20: 0
A21: DIO | E21: 0 | I21: 0 | BA21: 0
B22: CELKEM VRN | H22: =SUM(I16:I21) -> 0

Sheet 102 3346102 Pol
A1: Položkový rozpočet
A3: Stavba : | C3: 3346 Turnov - Opravy chodníků a zpevněných ploch | E3: Rozpočet: | F3: ='102 3346102 Rek'!H1 -> 3346/102
A4: Objekt : | C4: 102 Oprava chodníku na Havlíčovu nám-levá strana | E4: ='102 3346102 Rek'!G2 -> Oprava chodníku na Havlíčovu nám-levá strana
A6: P.č. | B6: Číslo položky | C6: Název položky | D6: MJ | E6: množství | F6: cena / MJ | G6: celkem (Kč) | H6: Jednotková hmotnost | I6: Celková hmotnost | J6: Jednotková dem.hmot. | K6: Celková dem.hmot.
A7: Díl: | B7: 1 | C7: Zemní práce | O7: 1
A8: 1 | B8: 113106121R00 | C8: Rozebrání dlažeb z betonových dlaždic na sucho | D8: m2 | E8: 68 | G8: =E8*F8 -> 0 | H8: 0 | I8: =E8*H8 -> 0 | J8: -0.138 | K8: =E8*J8 -> -9.384 | O8: 2 | AA8: 1 | AB8: 1 | AC8: 1 | AZ8: 1 | BA8: =IF(AZ8=1,G8,0) -> 0 | BB8: =IF(AZ8=2,G8,0) -> 0 | BC8: =IF(AZ8=3,G8,0) -> 0 | BD8: =IF(AZ8=4,G8,0) -> 0 | BE8: =IF(AZ8=5,G8,0) -> 0 | CA8: 1 | CB8: 1
C9: Stávající betonová dlažba 30/30:70,00 | E9: 70 | M9: Stávající betonová dlažba 30/30:70,00
C10: Odpočet plochy stávajících rabátek u stromů:-1,00*1,00*2 | E10: -2 | M10: Odpočet plochy stávajících rabátek u stromů:-1,00*1,00*2
A11: 2 | B11: 113107610R00 | C11: Odstranění podkladu nad 50 m2,kam.drcené tl.10 cm | D11: m2 | E11: 331 | G11: =E11*F11 -> 0 | H11: 0 | I11: =E11*H11 -> 0 | J11: -0.22 | K11: =E11*J11 -> -72.82 | O11: 2 | AA11: 1 | AB11: 1 | AC11: 1 | AZ11: 1 | BA11: =IF(AZ11=1,G11,0) -> 0 | BB11: =IF(AZ11=2,G11,0) -> 0 | BC11: =IF(AZ11=3,G11,0) -> 0 | BD11: =IF(AZ11=4,G11,0) -> 0 | BE11: =IF(AZ11=5,G11,0) -> 0 | CA11: 1 | CB11: 1
C12: Průměrná tl. stávajícího podkladu pod dlažbou a asfalty 10 cm: | E12: 0 | M12: Průměrná tl. stávajícího podkladu pod dlažbou a asfalty 10 cm:
C13: Stávající betonová dlažba 30/30:70,00 | E13: 70 | M13: Stávající betonová dlažba 30/30:70,00
C14: Stávající degradovaná asfalzová plocha chodníku - průměrná tl. 60 mm:270,00 | E14: 270 | M14: Stávající degradovaná asfalzová plocha chodníku - průměrná tl. 60 mm:270,00
C15: Odpočet plochy stávajících rabátek u stromů:-1,00*1,00*9 | E15: -9 | M15: Odpočet plochy stávajících rabátek u stromů:-1,00*1,00*9
A16: 3 | B16: 113108406R00 | C16: Odstranění asfaltové vrstvy pl.nad 50 m2, tl. 6 cm | D16: m2 | E16: 263 | G16: =E16*F16 -> 0 | H16: 0 | I16: =E16*H16 -> 0 | J16: -0.132 | K16: =E16*J16 -> -34.716 | O16: 2 | AA16: 1 | AB16: 1 | AC16: 1 | AZ16: 1 | BA16: =IF(AZ16=1,G16,0) -> 0 | BB16: =IF(AZ16=2,G16,0) -> 0 | BC16: =IF(AZ16=3,G16,0) -> 0 | BD16: =IF(AZ16=4,G16,0) -> 0 | BE16: =IF(AZ16=5,G16,0) -> 0 | CA16: 1 | CB16: 1
C17: Stávající degradovaná asfalzová plocha chodníku - průměrná tl. 60 mm:270,00 | E17: 270 | M17: Stávající degradovaná asfalzová plocha chodníku - průměrná tl. 60 mm:270,00
C18: Odpočet plochy stávajících rabátek u stromů:-1,00*1,00*7 | E18: -7 | M18: Odpočet plochy stávajících rabátek u stromů:-1,00*1,00*7
A19: 4 | B19: 113201111R00 | C19: Vytrhání obrubníků chodníkových a parkových (kamenné obruby pro opětovné použití) | D19: m | E19: 12 | G19: =E19*F19 -> 0 | H19: 0 | I19: =E19*H19 -> 0 | J19: -0.22 | K19: =E19*J19 -> -2.64 | O19: 2 | AA19: 1 | AB19: 1 | AC19: 1 | AZ19: 1 | BA19: =IF(AZ19=1,G19,0) -> 0 | BB19: =IF(AZ19=2,G19,0) -> 0 | BC19: =IF(AZ19=3,G19,0) -> 0 | BD19: =IF(AZ19=4,G19,0) -> 0 | BE19: =IF(AZ19=5,G19,0) -> 0 | CA19: 1 | CB19: 1
C20: Výšková úprava stávajících kamenných obrubníků 30/20:12,00 | E20: 12 | M20: Výšková úprava stávajících kamenných obrubníků 30/20:12,00
A21: 5 | B21: 122202201R00 | C21: Odkopávky pro silnice v hor. 3 do 100 m3 | D21: m3 | E21: 34.83 | G21: =E21*F21 -> 0 | H21: 0 | I21: =E21*H21 -> 0 | J21: 0 | K21: =E21*J21 -> 0 | O21: 2 | AA21: 1 | AB21: 0 | AC21: 0 | AZ21: 1 | BA21: =IF(AZ21=1,G21,0) -> 0 | BB21: =IF(AZ21=2,G21,0) -> 0 | BC21: =IF(AZ21=3,G21,0) -> 0 | BD21: =IF(AZ21=4,G21,0) -> 0 | BE21: =IF(AZ21=5,G21,0) -> 0 | CA21: 1 | CB21: 0
C22: Včetně naložení na dopravní prostředek | L22: Včetně naložení na dopravní prostředek | O22: 3
C23: Stávající betonová dlažba 30/30:70,00*0,12 | E23: 8.4 | M23: Stávající betonová dlažba 30/30:70,00*0,12
C24: Stávající degradovaná asfaltová plocha chodníku - chodník:(270,00-30,00)*0,09 | E24: 21.6 | M24: Stávající degradovaná asfaltová plocha chodníku - chodník:(270,00-30,00)*0,09
C25: Stávající degradovaná asfaltová plocha chodníku - vjezdy:30,00*0,19 | E25: 5.7 | M25: Stávající degradovaná asfaltová plocha chodníku - vjezdy:30,00*0,19
C26: Odpočet plochy stávajících rabátek u stromů:-1,00*1,00*0,12*2-1,00*1,00*0,09*7 | E26: -0.87 | M26: Odpočet plochy stávajících rabátek u stromů:-1,00*1,00*0,12*2-1,00*1,00*0,09*7
A27: 6 | B27: 122202209R00 | C27: Příplatek za lepivost - odkop. pro silnice v hor.3 | D27: m3 | E27: 34.83 | G27: =E27*F27 -> 0 | H27: 0 | I27: =E27*H27 -> 0 | J27: 0 | K27: =E27*J27 -> 0 | O27: 2 | AA27: 1 | AB27: 1 | AC27: 1 | AZ27: 1 | BA27: =IF(AZ27=1,G27,0) -> 0 | BB27: =IF(AZ27=2,G27,0) -> 0 | BC27: =IF(AZ27=3,G27,0) -> 0 | BD27: =IF(AZ27=4,G27,0) -> 0 | BE27: =IF(AZ27=5,G27,0) -> 0 | CA27: 1 | CB27: 1
C28: Stávající betonová dlažba 30/30:70,00*0,12 | E28: 8.4 | M28: Stávající betonová dlažba 30/30:70,00*0,12
C29: Stávající degradovaná asfaltová plocha chodníku - chodník:(270,00-30,00)*0,09 | E29: 21.6 | M29: Stávající degradovaná asfaltová plocha chodníku - chodník:(270,00-30,00)*0,09
C30: Stávající degradovaná asfaltová plocha chodníku - vjezdy:30,00*0,19 | E30: 5.7 | M30: Stávající degradovaná asfaltová plocha chodníku - vjezdy:30,00*0,19
C31: Odpočet plochy stávajících rabátek u stromů:-1,00*1,00*0,12*2-1,00*1,00*0,09*7 | E31: -0.87 | M31: Odpočet plochy stávajících rabátek u stromů:-1,00*1,00*0,12*2-1,00*1,00*0,09*7
A32: 7 | B32: 139601102R00 | C32: Ruční výkop jam, rýh a šachet v hornině tř. 3 | D32: m3 | E32: 5.0622 | G32: =E32*F32 -> 0 | H32: 0 | I32: =E32*H32 -> 0 | J32: 0 | K32: =E32*J32 -> 0 | O32: 2 | AA32: 1 | AB32: 1 | AC32: 1 | AZ32: 1 | BA32: =IF(AZ32=1,G32,0) -> 0 | BB32: =IF(AZ32=2,G32,0) -> 0 | BC32: =IF(AZ32=3,G32,0) -> 0 | BD32: =IF(AZ32=4,G32,0) -> 0 | BE32: =IF(AZ32=5,G32,0) -> 0 | CA32: 1 | CB32: 1
C33: Ruční výkop okolo stromů:2,20*1,30*0,22*2+2,20*1,30*0,19*7 | E33: 5.0622 | M33: Ruční výkop okolo stromů:2,20*1,30*0,22*2+2,20*1,30*0,19*7
A34: 8 | B34: 162701105RSZ | C34: Vodorovné přemístění výkopku z hor.1-7 na skládku zhotovitele | D34: m3 | E34: 38.274 | G34: =E34*F34 -> 0 | H34: 0 | I34: =E34*H34 -> 0 | J34: 0 | K34: =E34*J34 -> 0 | O34: 2 | AA34: 1 | AB34: 1 | AC34: 1 | AZ34: 1 | BA34: =IF(AZ34=1,G34,0) -> 0 | BB34: =IF(AZ34=2,G34,0) -> 0 | BC34: =IF(AZ34=3,G34,0) -> 0 | BD34: =IF(AZ34=4,G34,0) -> 0 | BE34: =IF(AZ34=5,G34,0) -> 0 | CA34: 1 | CB34: 1
C35: Odkopávky: | E35: 0 | M35: Odkopávky:
C36: Stávající betonová dlažba 30/30:70,00*0,12 | E36: 8.4 | M36: Stávající betonová dlažba 30/30:70,00*0,12
C37: Stávající degradovaná asfaltová plocha chodníku - chodník:(270,00-30,00)*0,09 | E37: 21.6 | M37: Stávající degradovaná asfaltová plocha chodníku - chodník:(270,00-30,00)*0,09
C38: Stávající degradovaná asfaltová plocha chodníku - vjezdy:30,00*0,19 | E38: 5.7 | M38: Stávající degradovaná asfaltová plocha chodníku - vjezdy:30,00*0,19
C39: Odpočet plochy stávajících rabátek u stromů:-2,20*1,30*0,12*2-2,20*1,30*0,09*7 | E39: -2.4882 | M39: Odpočet plochy stávajících rabátek u stromů:-2,20*1,30*0,12*2-2,20*1,30*0,09*7
C40: Ruční výkop okolo stromů:2,20*1,30*0,22*2+2,20*1,30*0,19*7 | E40: 5.0622 | M40: Ruční výkop okolo stromů:2,20*1,30*0,22*2+2,20*1,30*0,19*7
A41: 9 | B41: 167101101R00 | C41: Nakládání výkopku z hor.1-4 v množství do 100 m3 | D41: m3 | E41: 5.0622 | G41: =E41*F41 -> 0 | H41: 0 | I41: =E41*H41 -> 0 | J41: 0 | K41: =E41*J41 -> 0 | O41: 2 | AA41: 1 | AB41: 1 | AC41: 1 | AZ41: 1 | BA41: =IF(AZ41=1,G41,0) -> 0 | BB41: =IF(AZ41=2,G41,0) -> 0 | BC41: =IF(AZ41=3,G41,0) -> 0 | BD41: =IF(AZ41=4,G41,0) -> 0 | BE41: =IF(AZ41=5,G41,0) -> 0 | CA41: 1 | CB41: 1
C42: Ruční výkop okolo stromů:2,20*1,30*0,22*2+2,20*1,30*0,19*7 | E42: 5.0622 | M42: Ruční výkop okolo stromů:2,20*1,30*0,22*2+2,20*1,30*0,19*7
A43: 10 | B43: 181101102R00 | C43: Úprava pláně v zářezech v hor. 1-4, se zhutněním | D43: m2 | E43: 318.4 | G43: =E43*F43 -> 0 | H43: 0 | I43: =E43*H43 -> 0 | J43: 0 | K43: =E43*J43 -> 0 | O43: 2 | AA43: 1 | AB43: 1 | AC43: 1 | AZ43: 1 | BA43: =IF(AZ43=1,G43,0) -> 0 | BB43: =IF(AZ43=2,G43,0) -> 0 | BC43: =IF(AZ43=3,G43,0) -> 0 | BD43: =IF(AZ43=4,G43,0) -> 0 | BE43: =IF(AZ43=5,G43,0) -> 0 | CA43: 1 | CB43: 1
C44: Celková plocha chodníku:340,00 | E44: 340 | M44: Celková plocha chodníku:340,00
C45: Odpočet plochy rabátek un stromů včetně lemovánín z dlažby:-2,00*1,20*9 | E45: -21.6 | M45: Odpočet plochy rabátek un stromů včetně lemovánín z dlažby:-2,00*1,20*9
A46: 11 | B46: 181300012RAC | C46: Rozprostření ornice v rovině tloušťka 20 cm dovoz ornice ze vzdálenosti 5 km | D46: m2 | E46: 21.6 | G46: =E46*F46 -> 0 | H46: 3e-05 | I46: =E46*H46 -> 0.000648 | J46: 0 | K46: =E46*J46 -> 0 | O46: 2 | AA46: 1 | AB46: 1 | AC46: 1 | AZ46: 1 | BA46: =IF(AZ46=1,G46,0) -> 0 | BB46: =IF(AZ46=2,G46,0) -> 0 | BC46: =IF(AZ46=3,G46,0) -> 0 | BD46: =IF(AZ46=4,G46,0) -> 0 | BE46: =IF(AZ46=5,G46,0) -> 0 | CA46: 1 | CB46: 1
C47: Včetně přesunu hmot. | L47: Včetně přesunu hmot. | O47: 3
C48: Vyplnění rabátek okolo stromů:2,00*1,20*9 | E48: 21.6 | M48: Vyplnění rabátek okolo stromů:2,00*1,20*9
A49: 12 | B49: 199000002R00 | C49: Poplatek za skládku horniny 1- 7 č. dle katal. odpadů 17 05 04 | D49: m3 | E49: 38.274 | G49: =E49*F49 -> 0 | H49: 0 | I49: =E49*H49 -> 0 | J49: 0 | K49: =E49*J49 -> 0 | O49: 2 | AA49: 1 | AB49: 1 | AC49: 1 | AZ49: 1 | BA49: =IF(AZ49=1,G49,0) -> 0 | BB49: =IF(AZ49=2,G49,0) -> 0 | BC49: =IF(AZ49=3,G49,0) -> 0 | BD49: =IF(AZ49=4,G49,0) -> 0 | BE49: =IF(AZ49=5,G49,0) -> 0 | CA49: 1 | CB49: 1
C50: Odkopávky: | E50: 0 | M50: Odkopávky:
C51: Stávající betonová dlažba 30/30:70,00*0,12 | E51: 8.4 | M51: Stávající betonová dlažba 30/30:70,00*0,12
C52: Stávající degradovaná asfaltová plocha chodníku - chodník:(270,00-30,00)*0,09 | E52: 21.6 | M52: Stávající degradovaná asfaltová plocha chodníku - chodník:(270,00-30,00)*0,09
C53: Stávající degradovaná asfaltová plocha chodníku - vjezdy:30,00*0,19 | E53: 5.7 | M53: Stávající degradovaná asfaltová plocha chodníku - vjezdy:30,00*0,19
C54: Odpočet plochy stávajících rabátek u stromů:-2,20*1,30*0,12*2-2,20*1,30*0,09*7 | E54: -2.4882 | M54: Odpočet plochy stávajících rabátek u stromů:-2,20*1,30*0,12*2-2,20*1,30*0,09*7
C55: Ruční výkop okolo stromů:2,20*1,30*0,22*2+2,20*1,30*0,19*7 | E55: 5.0622 | M55: Ruční výkop okolo stromů:2,20*1,30*0,22*2+2,20*1,30*0,19*7
A56: 13 | B56: 979082113RSZ | C56: Vodorovná doprava suti po suchu na skládku zhotovitele | D56: t | E56: 116.92 | G56: =E56*F56 -> 0 | H56: 0 | I56: =E56*H56 -> 0 | J56: 0 | K56: =E56*J56 -> 0 | O56: 2 | AA56: 1 | AB56: 1 | AC56: 1 | AZ56: 1 | BA56: =IF(AZ56=1,G56,0) -> 0 | BB56: =IF(AZ56=2,G56,0) -> 0 | BC56: =IF(AZ56=3,G56,0) -> 0 | BD56: =IF(AZ56=4,G56,0) -> 0 | BE56: =IF(AZ56=5,G56,0) -> 0 | CA56: 1 | CB56: 1
A57: 14 | B57: 979089001R00 | C57: Poplatek za skládku stavební suti štěrky z komunikací, skupina odpadu 010408 | D57: t | E57: 72.82 | G57: =E57*F57 -> 0 | H57: 0 | I57: =E57*H57 -> 0 | J57: 0 | K57: =E57*J57 -> 0 | O57: 2 | AA57: 1 | AB57: 1 | AC57: 1 | AZ57: 1 | BA57: =IF(AZ57=1,G57,0) -> 0 | BB57: =IF(AZ57=2,G57,0) -> 0 | BC57: =IF(AZ57=3,G57,0) -> 0 | BD57: =IF(AZ57=4,G57,0) -> 0 | BE57: =IF(AZ57=5,G57,0) -> 0 | CA57: 1 | CB57: 1
A58: 15 | B58: 979990103R00 | C58: Poplatek za skládku stavební suti beton, žula skupina odpadu 170101 | D58: t | E58: 9.384 | G58: =E58*F58 -> 0 | H58: 0 | I58: =E58*H58 -> 0 | J58: 0 | K58: =E58*J58 -> 0 | O58: 2 | AA58: 1 | AB58: 1 | AC58: 1 | AZ58: 1 | BA58: =IF(AZ58=1,G58,0) -> 0 | BB58: =IF(AZ58=2,G58,0) -> 0 | BC58: =IF(AZ58=3,G58,0) -> 0 | BD58: =IF(AZ58=4,G58,0) -> 0 | BE58: =IF(AZ58=5,G58,0) -> 0 | CA58: 1 | CB58: 1
A59: 16 | B59: 979999995R00 | C59: Poplatek za reciklaci asfaltu, kusovost do 1600cm2 skupina 170302 | D59: t | E59: 34.716 | G59: =E59*F59 -> 0 | H59: 0 | I59: =E59*H59 -> 0 | J59: 0 | K59: =E59*J59 -> 0 | O59: 2 | AA59: 1 | AB59: 1 | AC59: 1 | AZ59: 1 | BA59: =IF(AZ59=1,G59,0) -> 0 | BB59: =IF(AZ59=2,G59,0) -> 0 | BC59: =IF(AZ59=3,G59,0) -> 0 | BD59: =IF(AZ59=4,G59,0) -> 0 | BE59: =IF(AZ59=5,G59,0) -> 0 | CA59: 1 | CB59: 1
C60: Položka je určena pro suť o velikosti kusu do 30x30 cm (technologický materiál určený k recyklaci). | L60: Položka je určena pro suť o velikosti kusu do 30x30 cm (technologický materiál určený k recyklaci). | O60: 3
B61: Celkem za | C61: 1 Zemní práce | G61: =SUM(G7:G60) -> 0 | I61: =SUM(I7:I60) -> 0.000648 | K61: =SUM(K7:K60) -> -119.56 | O61: 4 | BA61: =SUM(BA7:BA60) -> 0 | BB61: =SUM(BB7:BB60) -> 0 | BC61: =SUM(BC7:BC60) -> 0 | BD61: =SUM(BD7:BD60) -> 0 | BE61: =SUM(BE7:BE60) -> 0
A62: Díl: | B62: 5 | C62: Komunikace | O62: 1
A63: 17 | B63: 564851111RT2 | C63: Podklad ze štěrkodrti po zhutnění tloušťky 15 cm štěrkodrť frakce 0-32 mm | D63: m2 | E63: 288.4 | G63: =E63*F63 -> 0 | H63: 0.378 | I63: =E63*H63 -> 109.0152 | J63: 0 | K63: =E63*J63 -> 0 | O63: 2 | AA63: 1 | AB63: 1 | AC63: 1 | AZ63: 1 | BA63: =IF(AZ63=1,G63,0) -> 0 | BB63: =IF(AZ63=2,G63,0) -> 0 | BC63: =IF(AZ63=3,G63,0) -> 0 | BD63: =IF(AZ63=4,G63,0) -> 0 | BE63: =IF(AZ63=5,G63,0) -> 0 | CA63: 1 | CB63: 1
C64: Mozaika - chodník: | E64: 0 | M64: Mozaika - chodník:
C65: Celková plocha chodníku:340,00 | E65: 340 | M65: Celková plocha chodníku:340,00
C66: Odpočet dlažby vjezdů:-30,00 | E66: -30 | M66: Odpočet dlažby vjezdů:-30,00
C67: Odpočet plochy rabátek un stromů včetně lemovánín z dlažby:-2,00*1,20*9 | E67: -21.6 | M67: Odpočet plochy rabátek un stromů včetně lemovánín z dlažby:-2,00*1,20*9
A68: 18 | B68: 564861111RT2 | C68: Podklad ze štěrkodrti po zhutnění tloušťky 20 cm štěrkodrť frakce 0-32 mm | D68: m2 | E68: 30 | G68: =E68*F68 -> 0 | H68: 0.441 | I68: =E68*H68 -> 13.23 | J68: 0 | K68: =E68*J68 -> 0 | O68: 2 | AA68: 1 | AB68: 1 | AC68: 1 | AZ68: 1 | BA68: =IF(AZ68=1,G68,0) -> 0 | BB68: =IF(AZ68=2,G68,0) -> 0 | BC68: =IF(AZ68=3,G68,0) -> 0 | BD68: =IF(AZ68=4,G68,0) -> 0 | BE68: =IF(AZ68=5,G68,0) -> 0 | CA68: 1 | CB68: 1
C69: Plocha dlažby - vjezdy:30,00 | E69: 30 | M69: Plocha dlažby - vjezdy:30,00
A70: 19 | B70: 591211111R00 | C70: Kladení dlažby drobné kostky,lože z kamen.tl. 5 cm | D70: m2 | E70: 30 | G70: =E70*F70 -> 0 | H70: 0.11 | I70: =E70*H70 -> 3.3 | J70: 0 | K70: =E70*J70 -> 0 | O70: 2 | AA70: 1 | AB70: 1 | AC70: 1 | AZ70: 1 | BA70: =IF(AZ70=1,G70,0) -> 0 | BB70: =IF(AZ70=2,G70,0) -> 0 | BC70: =IF(AZ70=3,G70,0) -> 0 | BD70: =IF(AZ70=4,G70,0) -> 0 | BE70: =IF(AZ70=5,G70,0) -> 0 | CA70: 1 | CB70: 1
C71: V položce jsou zakalkulovány i náklady na dodání hmot pro lože a na dodání téhož materiálu na výplň spár. | L71: V položce jsou zakalkulovány i náklady na dodání hmot pro lože a na dodání téhož materiálu na výplň spár. | O71: 3
C72: Plocha dlažby - vjezdy:30,00 | E72: 30 | M72: Plocha dlažby - vjezdy:30,00
A73: 20 | B73: 596111111R00 | C73: Kladení dlažby mozaika 1barva, lože z kam.do 4 cm | D73: m2 | E73: 284.26 | G73: =E73*F73 -> 0 | H73: 0.167 | I73: =E73*H73 -> 47.47142 | J73: 0 | K73: =E73*J73 -> 0 | O73: 2 | AA73: 1 | AB73: 1 | AC73: 1 | AZ73: 1 | BA73: =IF(AZ73=1,G73,0) -> 0 | BB73: =IF(AZ73=2,G73,0) -> 0 | BC73: =IF(AZ73=3,G73,0) -> 0 | BD73: =IF(AZ73=4,G73,0) -> 0 | BE73: =IF(AZ73=5,G73,0) -> 0 | CA73: 1 | CB73: 1
C74: Mozaika - chodník: | E74: 0 | M74: Mozaika - chodník:
C75: Celková plocha chodníku:340,00 | E75: 340 | M75: Celková plocha chodníku:340,00
C76: Odpočet dlažby vjezdů:-30,00 | E76: -30 | M76: Odpočet dlažby vjezdů:-30,00
C77: Odpočet plochy rabátek un stromů včetně lemovánín z dlažby:-2,20*1,30*9 | E77: -25.74 | M77: Odpočet plochy rabátek un stromů včetně lemovánín z dlažby:-2,20*1,30*9
A78: 21 | B78: 58380010 | C78: Mozaika dlažební štípaná 4/6 cm 1t = 8 - 8,5 m2 | D78: t | E78: 35.1449 | G78: =E78*F78 -> 0 | H78: 1 | I78: =E78*H78 -> 35.1449 | K78: =E78*J78 -> 0 | O78: 2 | AA78: 3 | AB78: 1 | AC78: 58380010 | AZ78: 1 | BA78: =IF(AZ78=1,G78,0) -> 0 | BB78: =IF(AZ78=2,G78,0) -> 0 | BC78: =IF(AZ78=3,G78,0) -> 0 | BD78: =IF(AZ78=4,G78,0) -> 0 | BE78: =IF(AZ78=5,G78,0) -> 0 | CA78: 3 | CB78: 1
C79: Mozaika - chodník: | E79: 0 | M79: Mozaika - chodník:
C80: Začátek provozního součtu | E80: 0 | M80: Začátek provozního součtu
C81: Celková plocha chodníku:340,00 | E81: 340 | M81: Celková plocha chodníku:340,00
C82: Odpočet dlažby vjezdů:-30,00 | E82: -30 | M82: Odpočet dlažby vjezdů:-30,00
C83: Odpočet plochy rabátek un stromů včetně lemovánín z dlažby:-2,20*1,30*9 | E83: -25.74 | M83: Odpočet plochy rabátek un stromů včetně lemovánín z dlažby:-2,20*1,30*9
C84: Konec provozního součtu | E84: 284.26 | M84: Konec provozního součtu
C85: 284,26020/8,25*1,02 | E85: 35.1449 | M85: 284,26020/8,25*1,02
A86: 22 | B86: 58380129 | C86: Kostka dlažební drobná 10/12 štípaná Itř. 1t=4,0m2 | D86: t | E86: 8.7057 | G86: =E86*F86 -> 0 | H86: 1 | I86: =E86*H86 -> 8.7057 | K86: =E86*J86 -> 0 | O86: 2 | AA86: 3 | AB86: 1 | AC86: 58380129 | AZ86: 1 | BA86: =IF(AZ86=1,G86,0) -> 0 | BB86: =IF(AZ86=2,G86,0) -> 0 | BC86: =IF(AZ86=3,G86,0) -> 0 | BD86: =IF(AZ86=4,G86,0) -> 0 | BE86: =IF(AZ86=5,G86,0) -> 0 | CA86: 3 | CB86: 1
C87: Plocha dlažby - vjezdy:30,00/4,00*1,02 | E87: 7.65 | M87: Plocha dlažby - vjezdy:30,00/4,00*1,02
C88: Lemovánín rabátek z dlažby drobné:(2,20+1,20*2)*9*0,10/4,00*1,02 | E88: 1.0557 | M88: Lemovánín rabátek z dlažby drobné:(2,20+1,20*2)*9*0,10/4,00*1,02
B89: Celkem za | C89: 5 Komunikace | G89: =SUM(G62:G88) -> 0 | I89: =SUM(I62:I88) -> 216.86722 | K89: =SUM(K62:K88) -> 0 | O89: 4 | BA89: =SUM(BA62:BA88) -> 0 | BB89: =SUM(BB62:BB88) -> 0 | BC89: =SUM(BC62:BC88) -> 0 | BD89: =SUM(BD62:BD88) -> 0 | BE89: =SUM(BE62:BE88) -> 0
A90: Díl: | B90: 91 | C90: Doplňující práce na komunikaci | O90: 1
A91: 23 | B91: 916261111R00 | C91: Osazení obruby z kostek drobných, s boční opěrou | D91: m | E91: 41.4 | G91: =E91*F91 -> 0 | H91: 0.09971 | I91: =E91*H91 -> 4.127994 | J91: 0 | K91: =E91*J91 -> 0 | O91: 2 | AA91: 1 | AB91: 1 | AC91: 1 | AZ91: 1 | BA91: =IF(AZ91=1,G91,0) -> 0 | BB91: =IF(AZ91=2,G91,0) -> 0 | BC91: =IF(AZ91=3,G91,0) -> 0 | BD91: =IF(AZ91=4,G91,0) -> 0 | BE91: =IF(AZ91=5,G91,0) -> 0 | CA91: 1 | CB91: 1
C92: Lemovánín rabátek z dlažby drobné:(2,20+1,20*2)*9 | E92: 41.4 | M92: Lemovánín rabátek z dlažby drobné:(2,20+1,20*2)*9
A93: 24 | B93: 917161111R00 | C93: Osazení lež. obrub.kamen. s opěrou, lože z C 12/15 (původní kamenné obrubníky) | D93: m | E93: 12 | G93: =E93*F93 -> 0 | H93: 0.18806 | I93: =E93*H93 -> 2.25672 | J93: 0 | K93: =E93*J93 -> 0 | O93: 2 | AA93: 1 | AB93: 1 | AC93: 1 | AZ93: 1 | BA93: =IF(AZ93=1,G93,0) -> 0 | BB93: =IF(AZ93=2,G93,0) -> 0 | BC93: =IF(AZ93=3,G93,0) -> 0 | BD93: =IF(AZ93=4,G93,0) -> 0 | BE93: =IF(AZ93=5,G93,0) -> 0 | CA93: 1 | CB93: 1
C94: Výšková úprava stávajících kamenných obrubníků 30/20:12,00 | E94: 12 | M94: Výšková úprava stávajících kamenných obrubníků 30/20:12,00
B95: Celkem za | C95: 91 Doplňující práce na komunikaci | G95: =SUM(G90:G94) -> 0 | I95: =SUM(I90:I94) -> 6.384714 | K95: =SUM(K90:K94) -> 0 | O95: 4 | BA95: =SUM(BA90:BA94) -> 0 | BB95: =SUM(BB90:BB94) -> 0 | BC95: =SUM(BC90:BC94) -> 0 | BD95: =SUM(BD90:BD94) -> 0 | BE95: =SUM(BE90:BE94) -> 0
A96: Díl: | B96: 99 | C96: Staveništní přesun hmot | O96: 1
A97: 25 | B97: 998223011R00 | C97: Přesun hmot, pozemní komunikace, kryt dlážděný | D97: t | E97: 223.252582 | G97: =E97*F97 -> 0 | H97: 0 | I97: =E97*H97 -> 0 | K97: =E97*J97 -> 0 | O97: 2 | AA97: 7 | AB97: 1 | AC97: 2 | AZ97: 1 | BA97: =IF(AZ97=1,G97,0) -> 0 | BB97: =IF(AZ97=2,G97,0) -> 0 | BC97: =IF(AZ97=3,G97,0) -> 0 | BD97: =IF(AZ97=4,G97,0) -> 0 | BE97: =IF(AZ97=5,G97,0) -> 0 | CA97: 7 | CB97: 1
B98: Celkem za | C98: 99 Staveništní přesun hmot | G98: =SUM(G96:G97) -> 0 | I98: =SUM(I96:I97) -> 0 | K98: =SUM(K96:K97) -> 0 | O98: 4 | BA98: =SUM(BA96:BA97) -> 0 | BB98: =SUM(BB96:BB97) -> 0 | BC98: =SUM(BC96:BC97) -> 0 | BD98: =SUM(BD96:BD97) -> 0 | BE98: =SUM(BE96:BE97) -> 0
